Organisation name,Purchase Order Number,Order date,Total_Value,Supplier_Name,Account_Name,Service
Rochdale Borough Council,d1045186,01/10/2014,"54,450.00",PETRUS,SERVICES - GENERAL,ECONOMY AND ENVIRONMENT
Rochdale Borough Council,d1045192,01/10/2014,"5,760.00",EMO OIL LIMITED,OIL,ECONOMY AND ENVIRONMENT
Rochdale Borough Council,d1045193,01/10/2014,"6,865.40",NORTHGATE VEHICLE HIRE LIMITED,TRANSACTIONS-EXPENDITURE,ECONOMY AND ENVIRONMENT
Rochdale Borough Council,d1045201,01/10/2014,"7,800.00",CP DAVIDSON & SONS LTD,TRANSACTIONS-EXPENDITURE,ECONOMY AND ENVIRONMENT
Rochdale Borough Council,d1045202,01/10/2014,"9,100.00",CP DAVIDSON & SONS LTD,TRANSACTIONS-EXPENDITURE,ECONOMY AND ENVIRONMENT
Rochdale Borough Council,e1014643,01/10/2014,"5,066.08",ROSS CARE,PURCHASE OF OTHER EQUIPMENT,EARLY HELP AND SCHOOLS
Rochdale Borough Council,q1002661,01/10/2014,"10,249.00",BINDMONT PRINT SERVICES LTD,PRINTING & STATIONERY,CUSTOMERS & CORPORATE SERVICES
Rochdale Borough Council,d1045235,02/10/2014,"9,600.00",CITY OF BRADFORD METROPOLITAN DISTRICT COUNCIL,CHRISTMAS DECORATIONS,PROPERTY AND HIGHWAYS
Rochdale Borough Council,d1045238,02/10/2014,REDACTED COMMERCIALLY SENSITIVE,CHRISTMAS PLUS LTD,CHRISTMAS DECORATIONS,PROPERTY AND HIGHWAYS
Rochdale Borough Council,d1045241,02/10/2014,"6,316.50",F W SHERRATT LTD,REPAIRS & ALTS OF BUILDINGS,PROPERTY AND HIGHWAYS
Rochdale Borough Council,ph100542,02/10/2014,"16,490.00",ICE LIMITED,ACTIVITIES,PUBLIC HEALTH
Rochdale Borough Council,ph100543,02/10/2014,"141,620.00",ICE LIMITED,ACTIVITIES,PUBLIC HEALTH
Rochdale Borough Council,q1002682,02/10/2014,"16,800.00",STHREE PARTNERSHIP LLP,CAPITAL SALARIES,CUSTOMERS & CORPORATE SERVICES
Rochdale Borough Council,q1002686,02/10/2014,"5,800.00",UPDATA INFRASTRUCTURE UK LTD,PURCHASE OF OTHER EQUIPMENT,CUSTOMERS & CORPORATE SERVICES
Rochdale Borough Council,d1045250,03/10/2014,"7,362.37",ELECTRICITY NORTH WEST LTD,REWIRING AND ELECTRICAL UPGRADES,PROPERTY AND HIGHWAYS
Rochdale Borough Council,d1045253,03/10/2014,"5,000.00",UNITY PARTNERSHIP LTD,CONSULTANT FEES,PROPERTY AND HIGHWAYS
Rochdale Borough Council,d1045269,03/10/2014,"8,560.00",EMO OIL LIMITED,TRANSACTIONS-EXPENDITURE,ECONOMY AND ENVIRONMENT
Rochdale Borough Council,f1003729,03/10/2014,"35,353.50",MERITEC LIMITED,AGENCY STAFF,FINANCE SERVICES
Rochdale Borough Council,q1002690,03/10/2014,"5,000.00",ROCHDALE TOWN CENTRE MANAGEMENT CO,EVENTS,CUSTOMERS & CORPORATE SERVICES
Rochdale Borough Council,q1002692,03/10/2014,"5,000.00",ROCHDALE MEDIATION SERVICE LIMITED,GRANTS TO THE NON VOLUNTARY SECTOR,CUSTOMERS & CORPORATE SERVICES
Rochdale Borough Council,d1045300,06/10/2014,"8,344.06",BURNT TREE GROUP,TRANSACTIONS-EXPENDITURE,ECONOMY AND ENVIRONMENT
Rochdale Borough Council,d1045306,06/10/2014,"7,525.00",MACE LIMITED,BASIC SALARIES,ECONOMY AND ENVIRONMENT
Rochdale Borough Council,e1014675,06/10/2014,"6,000.00",EARLY BREAK,ACTIVITIES,EARLY HELP AND SCHOOLS
Rochdale Borough Council,ph100547,06/10/2014,"6,504.24",NHS HEYWOOD MIDDLETON AND ROCHDALE CCG,AGENCY STAFF,PUBLIC HEALTH
Rochdale Borough Council,q1002697,06/10/2014,"8,639.37",POLICE AND CRIME COMMISSIONER FOR GTR MANCHESTER,SERVICES - GENERAL,CUSTOMERS & CORPORATE SERVICES
Rochdale Borough Council,q1002698,06/10/2014,"8,724.21",POLICE AND CRIME COMMISSIONER FOR GTR MANCHESTER,SERVICES - GENERAL,CUSTOMERS & CORPORATE SERVICES
Rochdale Borough Council,d1045350,07/10/2014,"12,736.00",URBAN VISION PARTNERSHIP LTD,AGENCY STAFF,ECONOMY AND ENVIRONMENT
Rochdale Borough Council,f1003731,07/10/2014,"9,750.00",OVERDRIVE  INC,PURCHASE OF ICT SOFTWARE,CUSTOMERS & CORPORATE SERVICES
Rochdale Borough Council,q1002713,07/10/2014,"5,600.00",HEMMING GROUP LIMITED,ADVERTISING/PUBLICITY,FINANCE SERVICES
Rochdale Borough Council,q1002716,07/10/2014,"19,500.00",STHREE PARTNERSHIP LLP,CAPITAL SALARIES,CUSTOMERS & CORPORATE SERVICES
Rochdale Borough Council,d1045355,08/10/2014,"10,093.00",JONES LANG LASALLE,SECURITY,ECONOMY AND ENVIRONMENT
Rochdale Borough Council,d1045366,08/10/2014,"5,000.00",LUDUS LEISURE LTD,IMPROVEMENTS-MODERNISATION,ECONOMY AND ENVIRONMENT
Rochdale Borough Council,d1045366,08/10/2014,"5,000.00",LUDUS LEISURE LTD,IMPROVEMENTS-MODERNISATION,ECONOMY AND ENVIRONMENT
Rochdale Borough Council,d1045376,08/10/2014,"22,470.73",BRAHM FUNDCO 2 LTD,EQUIPMENT - GENERAL,ECONOMY AND ENVIRONMENT
Rochdale Borough Council,f1003735,08/10/2014,"205,160.00",GRANT THORNTON UK LLP,FEES / COMMISSION,FINANCE SERVICES
Rochdale Borough Council,q1002723,08/10/2014,"6,602.40",TG EVENTS LTD,PRINTING & STATIONERY,CUSTOMERS & CORPORATE SERVICES
Rochdale Borough Council,q1002733,08/10/2014,"98,354.11",H BELL & SONS ROCHDALE LTD,REPAIRS & ALTS OF BUILDINGS,CUSTOMERS & CORPORATE SERVICES
Rochdale Borough Council,d1045396,09/10/2014,"9,330.66",NATIONAL FLOOD FORUM,ACTIVITIES,ECONOMY AND ENVIRONMENT
Rochdale Borough Council,e1014703,09/10/2014,"108,072.00",DIOCESE OF SALFORD,IMPROVEMENTS-EXTENSIONS & ALTERATIONS,EARLY HELP AND SCHOOLS
Rochdale Borough Council,e1014719,09/10/2014,"13,448.00",OLDHAM METROPOLITAN BOROUGH COUNCIL,OTHER EST - SEN PROVISION,EARLY HELP AND SCHOOLS
Rochdale Borough Council,e1014725,09/10/2014,"40,546.61",INSPIREDSPACES ROCHDALE LTD,PURCHASE OF ICT HARDWARE,EARLY HELP AND SCHOOLS
Rochdale Borough Council,e1014729,09/10/2014,"13,618.88",INSPIREDSPACES ROCHDALE LTD,PURCHASE OF ICT HARDWARE,EARLY HELP AND SCHOOLS
Rochdale Borough Council,e1014730,09/10/2014,"25,413.31",INSPIREDSPACES ROCHDALE LTD,PURCHASE OF ICT HARDWARE,EARLY HELP AND SCHOOLS
Rochdale Borough Council,e1014733,09/10/2014,"21,697.44",INSPIREDSPACES ROCHDALE LTD,IT SUPPORT,EARLY HELP AND SCHOOLS
Rochdale Borough Council,e1014734,09/10/2014,"21,697.44",INSPIREDSPACES ROCHDALE LTD,IT SUPPORT,EARLY HELP AND SCHOOLS
Rochdale Borough Council,e1014735,09/10/2014,"21,697.44",INSPIREDSPACES ROCHDALE LTD,IT SUPPORT,EARLY HELP AND SCHOOLS
Rochdale Borough Council,e1014736,09/10/2014,"37,380.00",INSPIREDSPACES ROCHDALE LTD,PURCHASE OF ICT HARDWARE,EARLY HELP AND SCHOOLS
Rochdale Borough Council,e1014738,09/10/2014,"9,384.00",GATENBY SANDERSON,AGENCY STAFF,CHILDREN�S SOCIAL CARE
Rochdale Borough Council,q1002737,09/10/2014,"12,138.00",VICTIM SUPPORT & WITNESS SERVICE,GRANTS TO THE NON VOLUNTARY SECTOR,CUSTOMERS & CORPORATE SERVICES
Rochdale Borough Council,q1002738,09/10/2014,"20,240.00",TURNING POINT SERVICES LIMITED,SERVICES - GENERAL,CUSTOMERS & CORPORATE SERVICES
Rochdale Borough Council,q1002740,09/10/2014,"46,670.00",SPECIALIST COMPUTER CENTRES PLC,PURCHASE OF ICT HARDWARE,CUSTOMERS & CORPORATE SERVICES
Rochdale Borough Council,x1009763,09/10/2014,"7,580.00",TIPTOES CHILD THERAPY SERVICES LTD,MEDICAL FEES,CHILDREN�S SOCIAL CARE
Rochdale Borough Council,d1045440,10/10/2014,"16,222.00",NAB CONTRACTORS LTD,PURCHASE OF PLANT AND MACHINERY,ECONOMY AND ENVIRONMENT
Rochdale Borough Council,e1014743,10/10/2014,"682,145.84",AXIOM EDUCATION (ROCHDALE) LIMITED,PFI SCHEMES RPIX,EARLY HELP AND SCHOOLS
Rochdale Borough Council,e1014744,10/10/2014,"10,776.62",THE TOGETHER TRUST,OTHER LA`S - SEN PROVISION,EARLY HELP AND SCHOOLS
Rochdale Borough Council,q1002745,10/10/2014,"900,000.00",TOPMARK CLAIMS MANAGEMENT LTD IMPREST,TRANSACTIONS-EXPENDITURE,FINANCE SERVICES
Rochdale Borough Council,s1017479,10/10/2014,"13,613.00",TERRY GROUP LTD,IMPROVEMENTS-EXTENSIONS & ALTERATIONS,PHYSICAL DIS & OLDER PEOPLE
Rochdale Borough Council,d1045445,13/10/2014,"12,640.00",VALE ENGINEERING YORK LTD,PURCHASE OF VEHICLES,ECONOMY AND ENVIRONMENT
Rochdale Borough Council,d1045459,13/10/2014,"6,500.00",F W SHERRATT LTD,ROADWORKS,PROPERTY AND HIGHWAYS
Rochdale Borough Council,d1045465,13/10/2014,"30,900.00",EMO OIL LIMITED,TRANSACTIONS-EXPENDITURE,ECONOMY AND ENVIRONMENT
Rochdale Borough Council,f1003744,13/10/2014,"11,500.00",CAPITA BUSINESS SERVICES LIMITED,SOFTWARE,FINANCE SERVICES
Rochdale Borough Council,ph100551,13/10/2014,"7,040.00",VIRGIN CARE BLACKPOOL LLP,PH OTHER CONTRACTS,PUBLIC HEALTH
Rochdale Borough Council,d1045484,14/10/2014,"17,500.00",THE BOND BOARD LIMITED,GRANTS TO OTHER BODIES,ECONOMY AND ENVIRONMENT
Rochdale Borough Council,d1045504,14/10/2014,"9,464.81",GREATER MANCHESTER POLICE AUTHORITY,BASIC SALARIES,ECONOMY AND ENVIRONMENT
Rochdale Borough Council,e1014766,14/10/2014,"5,884.77",INSPIREDSPACES ROCHDALE LTD,PURCHASE OF ICT HARDWARE,EARLY HELP AND SCHOOLS
Rochdale Borough Council,e1014768,14/10/2014,"19,858.70",INSPIREDSPACES ROCHDALE LTD,PURCHASE OF ICT HARDWARE,EARLY HELP AND SCHOOLS
Rochdale Borough Council,e1014769,14/10/2014,"16,299.64",INSPIREDSPACES ROCHDALE LTD,PURCHASE OF ICT HARDWARE,EARLY HELP AND SCHOOLS
Rochdale Borough Council,e1014771,14/10/2014,"28,884.43",INSPIREDSPACES ROCHDALE LTD,PURCHASE OF ICT HARDWARE,EARLY HELP AND SCHOOLS
Rochdale Borough Council,e1014772,14/10/2014,"10,174.17",INSPIREDSPACES ROCHDALE LTD,PURCHASE OF ICT HARDWARE,EARLY HELP AND SCHOOLS
Rochdale Borough Council,e1014773,14/10/2014,"5,374.60",INSPIREDSPACES ROCHDALE LTD,PURCHASE OF ICT HARDWARE,EARLY HELP AND SCHOOLS
Rochdale Borough Council,e1014774,14/10/2014,"12,664.93",INSPIREDSPACES ROCHDALE LTD,PURCHASE OF ICT HARDWARE,EARLY HELP AND SCHOOLS
Rochdale Borough Council,e1014775,14/10/2014,"34,679.14",INSPIREDSPACES ROCHDALE LTD,PURCHASE OF ICT HARDWARE,EARLY HELP AND SCHOOLS
Rochdale Borough Council,e1014778,14/10/2014,"6,102.00",PENNINE CARE NHS,SERVICE LEVEL AGREEMENTS,CHILDREN�S SOCIAL CARE
Rochdale Borough Council,e1014780,14/10/2014,"7,770.00",PENNINE CARE NHS,SERVICE LEVEL AGREEMENTS,CHILDREN�S SOCIAL CARE
Rochdale Borough Council,e1014783,14/10/2014,"6,340.10",AXIOM EDUCATION (ROCHDALE) LIMITED,"DEV CAP - NEW CONSTRUCTION,CONVERSION",EARLY HELP AND SCHOOLS
Rochdale Borough Council,e1014793,14/10/2014,"6,399.01",INSPIREDSPACES ROCHDALE LTD,PURCHASE OF ICT HARDWARE,EARLY HELP AND SCHOOLS
Rochdale Borough Council,e1014794,14/10/2014,"50,500.00",POSITIVE STEPS,EXTERNALLY MANAGED FUNDS,EARLY HELP AND SCHOOLS
Rochdale Borough Council,e1014795,14/10/2014,"16,299.64",INSPIREDSPACES ROCHDALE LTD,PURCHASE OF ICT HARDWARE,EARLY HELP AND SCHOOLS
Rochdale Borough Council,q1002764,14/10/2014,"34,196.19",EARLY BREAK,GRANTS TO THE NON VOLUNTARY SECTOR,CUSTOMERS & CORPORATE SERVICES
Rochdale Borough Council,s1017490,14/10/2014,"150,000.00",CAREWEST NORTHERN LIMITED,SERVICE LEVEL AGREEMENTS,PHYSICAL DIS & OLDER PEOPLE
Rochdale Borough Council,d1045527,15/10/2014,"7,000.00",F S MOULT & SON,IMPROVEMENTS-MODERNISATION,ECONOMY AND ENVIRONMENT
Rochdale Borough Council,d1045533,15/10/2014,"5,000.00",URS INFRASTRUCTURE AND ENVIRONMENT UK LTD,SITE INVESTIGATION,ECONOMY AND ENVIRONMENT
Rochdale Borough Council,e1014800,15/10/2014,"15,057.17",PENNINE CARE NHS,SERVICE LEVEL AGREEMENTS,CHILDREN�S SOCIAL CARE
Rochdale Borough Council,e1014801,15/10/2014,"10,578.00",PENNINE CARE NHS,SERVICE LEVEL AGREEMENTS,CHILDREN�S SOCIAL CARE
Rochdale Borough Council,e1014802,15/10/2014,"16,194.00",PENNINE CARE NHS,SERVICE LEVEL AGREEMENTS,CHILDREN�S SOCIAL CARE
Rochdale Borough Council,e1014804,15/10/2014,"386,216.12",INSPIREDSPACES ROCHDALE PROJECTCO2 LTD,PFI SCHEMES RPIX,EARLY HELP AND SCHOOLS
Rochdale Borough Council,e1014805,15/10/2014,"19,253.47",INSPIREDSPACES ROCHDALE LTD,PURCHASE OF ICT HARDWARE,EARLY HELP AND SCHOOLS
Rochdale Borough Council,e1014808,15/10/2014,"35,097.55",AXIOM EDUCATION (ROCHDALE) LIMITED,MEALS,EARLY HELP AND SCHOOLS
Rochdale Borough Council,e1014816,15/10/2014,"313,889.44",INSPIREDSPACES ROCHDALE PROJECT CO1 LTD,PFI SCHEMES RPIX,EARLY HELP AND SCHOOLS
Rochdale Borough Council,ph100559,15/10/2014,"9,013.06",VICTIM SUPPORT & WITNESS SERVICE,PH BUSINESS CASES,PUBLIC HEALTH
Rochdale Borough Council,d1045548,16/10/2014,"7,900.00",D AND M DEMOLITION AND RECYCLING LTD,REMOVAL/STRIP OUT COSTS,ECONOMY AND ENVIRONMENT
Rochdale Borough Council,q1002770,16/10/2014,"19,431.00",AGILISYS LIMITED,AGILISYS CONTRACT,CUSTOMERS & CORPORATE SERVICES
Rochdale Borough Council,w1000285,16/10/2014,"13,500.00",CROSSROADS CARE IN GREATER MANCHESTER,ALCOHOL & DRUGS,LEARNING DIS & MENTAL HEALTH
Rochdale Borough Council,d1045577,17/10/2014,"24,939.14",JONES LANG LASALLE,SECURITY,ECONOMY AND ENVIRONMENT
Rochdale Borough Council,d1045590,17/10/2014,"20,000.00",NOVUS SOLAR DEVELOPMENTS LIMITED,PURCHASE OF PLANT AND MACHINERY,ECONOMY AND ENVIRONMENT
Rochdale Borough Council,e1014833,17/10/2014,"17,998.24",AXIOM EDUCATION (ROCHDALE) LIMITED,WATER CHARGES,EARLY HELP AND SCHOOLS
Rochdale Borough Council,q1002785,17/10/2014,"6,600.00",RICOH UK LTD,TRANSACTIONS-EXPENDITURE,CUSTOMERS & CORPORATE SERVICES
Rochdale Borough Council,s1017513,17/10/2014,"8,314.00",TERRY GROUP LTD,TRANSACTIONS-EXPENDITURE,PHYSICAL DIS & OLDER PEOPLE
Rochdale Borough Council,d1045602,20/10/2014,"136,258.06",CANAL & RIVER TRUST,ROCHDALE CANAL MAINTENANCE,ECONOMY AND ENVIRONMENT
Rochdale Borough Council,d1045617,20/10/2014,"16,650.00",WILDE CONSULTING ENGINEERS,ROADWORKS,PROPERTY AND HIGHWAYS
Rochdale Borough Council,d1045618,20/10/2014,"18,000.00",WILDE CONSULTING ENGINEERS,ROADWORKS,PROPERTY AND HIGHWAYS
Rochdale Borough Council,q1002797,20/10/2014,"40,400.00",MANCHESTER CITY COUNCIL,AGMA,CUSTOMERS & CORPORATE SERVICES
Rochdale Borough Council,d1045669,21/10/2014,"6,067.00",NAB CONTRACTORS LTD,PURCHASE OF PLANT AND MACHINERY,ECONOMY AND ENVIRONMENT
Rochdale Borough Council,e1014877,21/10/2014,"26,666.67",NUGENT CARE,OTHER EST - SEN PROVISION,EARLY HELP AND SCHOOLS
Rochdale Borough Council,ph100567,21/10/2014,"130,180.00",BIG LIFE CENTRES,PH BIG LIFE CONTRACT,PUBLIC HEALTH
Rochdale Borough Council,q1002812,21/10/2014,"34,980.62",Oracle Corporation UK Limited,SOFTWARE,CUSTOMERS & CORPORATE SERVICES
Rochdale Borough Council,d1045680,22/10/2014,"6,380.00",F S MOULT & SON,IMPROVEMENTS-MODERNISATION,ECONOMY AND ENVIRONMENT
Rochdale Borough Council,ph100573,22/10/2014,"12,240.00",THE LESBIAN & GAY FOUNDATION,SERVICE LEVEL AGREEMENTS,PUBLIC HEALTH
Rochdale Borough Council,q1002817,22/10/2014,"8,000.00",SENITOR RECRUITMENT,CAPITAL SALARIES,CUSTOMERS & CORPORATE SERVICES
Rochdale Borough Council,q1002819,22/10/2014,"13,244.51",RESTORE PLC,TRANSACTIONS-EXPENDITURE,CUSTOMERS & CORPORATE SERVICES
Rochdale Borough Council,s1017541,22/10/2014,"23,250.00",PETRUS,SERVICE LEVEL AGREEMENTS,LEARNING DIS & MENTAL HEALTH
Rochdale Borough Council,s1017542,22/10/2014,"23,250.00",PETRUS,SERVICE LEVEL AGREEMENTS,LEARNING DIS & MENTAL HEALTH
Rochdale Borough Council,x1009837,22/10/2014,"14,333.00",CARITAS CARE LTD,ADOPTION PAYMENTS,CHILDREN�S SOCIAL CARE
Rochdale Borough Council,d1045722,23/10/2014,"300,000.00",COMMUNITY LIGHTING PARTNERSHIP ROCHDALE LTD,PFI SCHEMES RPIX,PROPERTY AND HIGHWAYS
Rochdale Borough Council,d1045723,23/10/2014,"43,337.50",F W SHERRATT LTD,ROADWORKS,ECONOMY AND ENVIRONMENT
Rochdale Borough Council,d1045729,23/10/2014,"21,625.00",TREE HEROES LTD,ROADWORKS,PROPERTY AND HIGHWAYS
Rochdale Borough Council,d1045738,23/10/2014,"14,237.00",ROCHDALE TOWN CENTRE MANAGEMENT CO,GRANTS TO THE NON VOLUNTARY SECTOR,ECONOMY AND ENVIRONMENT
Rochdale Borough Council,d1045748,23/10/2014,"291,102.00",DENNIS EAGLE LTD,PURCHASE OF VEHICLES,ECONOMY AND ENVIRONMENT
Rochdale Borough Council,e1014896,23/10/2014,"213,364.12",INSPIREDSPACES ROCHDALE LTD,IMPROVEMENTS-MODERNISATION,EARLY HELP AND SCHOOLS
Rochdale Borough Council,d1045753,24/10/2014,"15,139.00",JONES LANG LASALLE,SECURITY,ECONOMY AND ENVIRONMENT
Rochdale Borough Council,d1045756,24/10/2014,"7,000.00",LUBBE & SONS LTD,EQUIPMENT - GENERAL,ECONOMY AND ENVIRONMENT
Rochdale Borough Council,e1014905,24/10/2014,"275,680.42",INSPIREDSPACES ROCHDALE PROJECTCO2 LTD,IMPROVEMENTS-MODERNISATION,EARLY HELP AND SCHOOLS
Rochdale Borough Council,ph100578,24/10/2014,"50,474.00",THE PENNINE ACUTE HOSPITALS NHS TRUST,PH PENNINE ACUTE CONTRACT,PUBLIC HEALTH
Rochdale Borough Council,ph100579,24/10/2014,"15,000.00",THE PENNINE ACUTE HOSPITALS NHS TRUST,PH OTHER CONTRACTS,PUBLIC HEALTH
Rochdale Borough Council,q1002849,24/10/2014,"13,530.00",COURTESY COACHES LTD,ACTIVITIES,CUSTOMERS & CORPORATE SERVICES
Rochdale Borough Council,q1002854,24/10/2014,"8,800.00",UPDATA INFRASTRUCTURE UK LTD,COMMUNICATION AND COMPUTING - GENERAL,CUSTOMERS & CORPORATE SERVICES
Rochdale Borough Council,x1009862,24/10/2014,"5,000.00",CHILDREN AND FAMILIES ACROSS BORDERS,FEES / COMMISSION,CHILDREN�S SOCIAL CARE
Rochdale Borough Council,x1009864,24/10/2014,"5,197.00",THE PLACE YOUNG PEOPLES COMPANY LTD,CONSULTANT FEES,CHILDREN�S SOCIAL CARE
Rochdale Borough Council,s1017562,26/10/2014,"7,065.00",MACK4 LIMITED,IMPROVEMENTS-EXTENSIONS & ALTERATIONS,PHYSICAL DIS & OLDER PEOPLE
Rochdale Borough Council,s1017563,26/10/2014,"8,063.00",TERRY GROUP LTD,IMPROVEMENTS-EXTENSIONS & ALTERATIONS,PHYSICAL DIS & OLDER PEOPLE
Rochdale Borough Council,d1045801,27/10/2014,"8,000.00",GROVER LEWIS ASSOCIATES,CONSULTANT FEES,ECONOMY AND ENVIRONMENT
Rochdale Borough Council,d1045802,27/10/2014,"7,000.00",JEREMY BENN ASSOCIATES LTD,CONSULTANT FEES,ECONOMY AND ENVIRONMENT
Rochdale Borough Council,q1002864,27/10/2014,"8,550.00",TAMESIDE METROPOLITAN BOROUGH COUNCIL,AGMA,CUSTOMERS & CORPORATE SERVICES
Rochdale Borough Council,d1045805,28/10/2014,"5,640.00",R J & D RAINFORD,"TREES, SHRUBS, PLANTS",ECONOMY AND ENVIRONMENT
Rochdale Borough Council,d1045806,28/10/2014,"8,000.00",AECOM PROFESSIONAL SERVICES LTD,SURVEYORS FEES,ECONOMY AND ENVIRONMENT
Rochdale Borough Council,d1045816,28/10/2014,"6,000.00",CUNDALL,ENGINEERS FEES,ECONOMY AND ENVIRONMENT
Rochdale Borough Council,d1045820,28/10/2014,"5,598.00",SAUNDERS & TAYLOR (MANCHESTER) LIMITED,REPAIRS AND HEATING (EXC BOILERS),ECONOMY AND ENVIRONMENT
Rochdale Borough Council,d1045822,28/10/2014,"6,250.00",SMW ARCHITECTS LTD,ARCHITECTS  FEES,ECONOMY AND ENVIRONMENT
Rochdale Borough Council,d1045826,28/10/2014,"8,240.00",EMO OIL LIMITED,TRANSACTIONS-EXPENDITURE,ECONOMY AND ENVIRONMENT
Rochdale Borough Council,d1045827,28/10/2014,"138,262.20",RIVERSIDE TRUCK RENTAL,LONG TERM CONTRACTED EXTERNAL HIRE,ECONOMY AND ENVIRONMENT
Rochdale Borough Council,ph100586,28/10/2014,"7,822.00",TOBACCO FREE FUTURES CIC,PH BUSINESS CASES,PUBLIC HEALTH
Rochdale Borough Council,q1002879,28/10/2014,"5,595.00",BINDMONT PRINT SERVICES LTD,ELECTION MATERIALS,CUSTOMERS & CORPORATE SERVICES
Rochdale Borough Council,s1017572,28/10/2014,"27,529.00",PENNINE CARE NHS,RENTS,PHYSICAL DIS & OLDER PEOPLE
Rochdale Borough Council,d1045853,29/10/2014,"26,585.00",GROUNDWORK OLDHAM AND ROCHDALE,MINOR BUILDING WORKS,ECONOMY AND ENVIRONMENT
Rochdale Borough Council,d1045854,29/10/2014,"16,607.00",OLDHAM & ROCHDALE GROUNDWORK TRUST LTD,MINOR BUILDING WORKS,ECONOMY AND ENVIRONMENT
Rochdale Borough Council,d1045857,30/10/2014,"25,000.00",BLUE ORCHID MANAGEMENT CONSULTANTS LTD,GRANTS TO THE NON VOLUNTARY SECTOR,ECONOMY AND ENVIRONMENT
Rochdale Borough Council,d1045861,30/10/2014,"7,900.00",S T HEATINGS SERVICES LTD,BOILER REPLACEMENTS,ECONOMY AND ENVIRONMENT
Rochdale Borough Council,d1045862,30/10/2014,"40,705.67",ROCHDALE & DIST CITIZENS ADVICE BUREAU,ADVICE/SUPPORT,ECONOMY AND ENVIRONMENT
Rochdale Borough Council,d1045865,30/10/2014,"5,800.00",ASC RENEWABLES LTD,PURCHASE OF PLANT AND MACHINERY,ECONOMY AND ENVIRONMENT
Rochdale Borough Council,d1045866,30/10/2014,"14,000.00",ASC RENEWABLES LTD,EXPENSES - GENERAL,ECONOMY AND ENVIRONMENT
Rochdale Borough Council,d1045868,30/10/2014,"136,258.06",CANAL & RIVER TRUST,ROCHDALE CANAL MAINTENANCE,ECONOMY AND ENVIRONMENT
Rochdale Borough Council,d1045876,30/10/2014,"7,980.00",F S MOULT & SON,IMPROVEMENTS-MODERNISATION,ECONOMY AND ENVIRONMENT
Rochdale Borough Council,ph100588,30/10/2014,"6,040.00",ICE LIMITED,PH BUSINESS CASES,PUBLIC HEALTH
Rochdale Borough Council,d1045890,31/10/2014,"7,116.52",PARKWOOD LEISURE,MISC CHARGES,PROPERTY AND HIGHWAYS
Rochdale Borough Council,d1045897,31/10/2014,"6,975.00",D AND M DEMOLITION AND RECYCLING LTD,REMOVAL/STRIP OUT COSTS,ECONOMY AND ENVIRONMENT
Rochdale Borough Council,d1045898,31/10/2014,"6,880.00",MACE LIMITED,CONSULTANT FEES,ECONOMY AND ENVIRONMENT
Rochdale Borough Council,x1009893,31/10/2014,"9,900.00",CORAM,ADOPTION PAYMENTS,CHILDREN�S SOCIAL CARE
Rochdale Borough Council,d1045907,03/11/2014,"20,314.50",PER FIT WINDOWS LTD,TRANSACTIONS-EXPENDITURE,PROPERTY AND HIGHWAYS
Rochdale Borough Council,d1045917,03/11/2014,"7,000.00",LAND USE CONSULTANTS LTD,CONSULTANT FEES,ECONOMY AND ENVIRONMENT
Rochdale Borough Council,d1045918,03/11/2014,"5,000.00",HEPWORTH ACOUSTICS LTD,CONSULTANT FEES,ECONOMY AND ENVIRONMENT
Rochdale Borough Council,e1015011,03/11/2014,"10,658.00",BELMONT SCHOOL LIMITED,OTHER LA`S - SEN PROVISION,EARLY HELP AND SCHOOLS
Rochdale Borough Council,f1003783,03/11/2014,"9,750.00",OVERDRIVE  INC,PURCHASE OF ICT SOFTWARE,CUSTOMERS & CORPORATE SERVICES
Rochdale Borough Council,f1003784,03/11/2014,"9,750.00",OVERDRIVE  INC,PURCHASE OF ICT SOFTWARE,CUSTOMERS & CORPORATE SERVICES
Rochdale Borough Council,q1002913,03/11/2014,"15,390.00",ROCHDALE TOWN CENTRE MANAGEMENT CO,EVENTS,CUSTOMERS & CORPORATE SERVICES
Rochdale Borough Council,d1045942,04/11/2014,"10,000.00",ENVIRONMENTAL EVALUATION,HEALTH AUTHORITIES,ECONOMY AND ENVIRONMENT
Rochdale Borough Council,e1015017,04/11/2014,"10,686.32",PENNINE CARE NHS,CONSULTANT FEES,EARLY HELP AND SCHOOLS
Rochdale Borough Council,e1015029,04/11/2014,"145,665.63",INSPIREDSPACES ROCHDALE LTD,PURCHASE OF ICT HARDWARE,EARLY HELP AND SCHOOLS
Rochdale Borough Council,ph100594,04/11/2014,"147,000.00",LINK4LIFE (CHARITY),LINK 4 LIFE CONTRACT,PUBLIC HEALTH
Rochdale Borough Council,ph100598,04/11/2014,"227,150.00",PENNINE CARE NHS,PH PENNINE CARE CONTRACT,PUBLIC HEALTH
Rochdale Borough Council,q1002923,04/11/2014,"70,000.00",EVERYTHING EVERYWHERE LIMITED,TRANSACTIONS-EXPENDITURE,CUSTOMERS & CORPORATE SERVICES
Rochdale Borough Council,d1045989,05/11/2014,"8,255.84",J COONEY LTD,FOOTPATHS,PROPERTY AND HIGHWAYS
Rochdale Borough Council,d1045990,05/11/2014,"12,235.67",J COONEY LTD,FOOTPATHS,PROPERTY AND HIGHWAYS
Rochdale Borough Council,d1045998,05/11/2014,"34,500.00",GROUNDWORK OLDHAM AND ROCHDALE,MISCELLANEOUS CAPITAL EXPENDITURE,ECONOMY AND ENVIRONMENT
Rochdale Borough Council,e1015048,05/11/2014,"12,696.00",GATENBY SANDERSON,AGENCY STAFF,CHILDREN�S SOCIAL CARE
Rochdale Borough Council,f1003803,05/11/2014,"108,290.34",TRAFFORD MBC,OTHER LOCAL AUTHORITIES,FINANCE SERVICES
Rochdale Borough Council,q1002933,05/11/2014,"10,000.00",EVERYTHING EVERYWHERE,TRANSACTIONS-EXPENDITURE,CUSTOMERS & CORPORATE SERVICES
Rochdale Borough Council,d1046026,06/11/2014,"455,392.64",G M WASTE DISPOSAL AUTHORITY,WASTE DISPOSAL LEVY,ECONOMY AND ENVIRONMENT
Rochdale Borough Council,e1015056,06/11/2014,"8,499.00",PEOPLETOO LIMITED,CONSULTANT FEES,CHILDREN�S SOCIAL CARE
Rochdale Borough Council,ph100601,06/11/2014,"8,209.35",VICTIM SUPPORT & WITNESS SERVICE,PH BUSINESS CASES,PUBLIC HEALTH
Rochdale Borough Council,q1002949,06/11/2014,"5,244.25",BINDMONT PRINT SERVICES LTD,PRINTING & STATIONERY,CUSTOMERS & CORPORATE SERVICES
Rochdale Borough Council,d1046068,07/11/2014,"12,461.04",STRAIGHT MANUFACTURING LTD,PURCHASE OF OTHER EQUIPMENT,ECONOMY AND ENVIRONMENT
Rochdale Borough Council,d1046069,07/11/2014,"10,225.44",STRAIGHT MANUFACTURING LTD,PURCHASE OF OTHER EQUIPMENT,ECONOMY AND ENVIRONMENT
Rochdale Borough Council,d1046070,07/11/2014,"11,644.56",STRAIGHT MANUFACTURING LTD,PURCHASE OF OTHER EQUIPMENT,ECONOMY AND ENVIRONMENT
Rochdale Borough Council,d1046071,07/11/2014,"5,112.72",STRAIGHT MANUFACTURING LTD,PURCHASE OF OTHER EQUIPMENT,ECONOMY AND ENVIRONMENT
Rochdale Borough Council,d1046073,07/11/2014,"5,822.28",STRAIGHT MANUFACTURING LTD,PURCHASE OF OTHER EQUIPMENT,ECONOMY AND ENVIRONMENT
Rochdale Borough Council,d1046074,07/11/2014,"5,112.72",STRAIGHT MANUFACTURING LTD,PURCHASE OF OTHER EQUIPMENT,ECONOMY AND ENVIRONMENT
Rochdale Borough Council,d1046075,07/11/2014,"5,112.72",STRAIGHT MANUFACTURING LTD,PURCHASE OF OTHER EQUIPMENT,ECONOMY AND ENVIRONMENT
Rochdale Borough Council,d1046076,07/11/2014,"5,822.28",STRAIGHT MANUFACTURING LTD,PURCHASE OF OTHER EQUIPMENT,ECONOMY AND ENVIRONMENT
Rochdale Borough Council,e1015066,07/11/2014,"8,538.00",PENNINE CARE NHS,HEALTH AUTH - SERVICE LEVEL AGREEMENT,EARLY HELP AND SCHOOLS
Rochdale Borough Council,q1002964,07/11/2014,"28,000.00",EVERYTHING EVERYWHERE LIMITED,TRANSACTIONS-EXPENDITURE,CUSTOMERS & CORPORATE SERVICES
Rochdale Borough Council,x1009926,07/11/2014,"9,000.00",REDACTED PERSONAL DATA,ADOPTION PAYMENTS,CHILDREN�S SOCIAL CARE
Rochdale Borough Council,e1015071,10/11/2014,"9,000.00",OFFICE DEPOT UK LIMITED,PRINTING,EARLY HELP AND SCHOOLS
Rochdale Borough Council,e1015078,10/11/2014,"10,087.20",DIOCESE OF SALFORD,IMPROVEMENTS-MODERNISATION,EARLY HELP AND SCHOOLS
Rochdale Borough Council,e1015079,10/11/2014,"114,228.00",DIOCESE OF SALFORD,IMPROVEMENTS-MODERNISATION,EARLY HELP AND SCHOOLS
Rochdale Borough Council,ph100604,10/11/2014,"180,188.68",BIG LIFE CENTRES,PH BIG LIFE CONTRACT,PUBLIC HEALTH
Rochdale Borough Council,q1002988,10/11/2014,"8,403.75",JGM AGENCY,PUBLICITY,FINANCE SERVICES
Rochdale Borough Council,d1046105,11/11/2014,"71,735.00",POWER PERFECTOR LTD,ENGINEERS FEES,EARLY HELP AND SCHOOLS
Rochdale Borough Council,d1046128,11/11/2014,"18,137.75",FORD MOTOR COMPANY LTD,PURCHASE OF VEHICLES,ECONOMY AND ENVIRONMENT
Rochdale Borough Council,d1046129,11/11/2014,"32,960.00",EMO OIL LIMITED,TRANSACTIONS-EXPENDITURE,ECONOMY AND ENVIRONMENT
Rochdale Borough Council,d1046140,11/11/2014,"21,079.50",COMPLETE DEMOLITION LIMITED,DEMOLITION AND CLEARANCE,ECONOMY AND ENVIRONMENT
Rochdale Borough Council,e1015087,11/11/2014,"8,100.00",DIOCESE OF SALFORD,IMPROVEMENTS-MODERNISATION,EARLY HELP AND SCHOOLS
Rochdale Borough Council,e1015089,11/11/2014,"6,250.00",BARNARDOS,ACTIVITIES,EARLY HELP AND SCHOOLS
Rochdale Borough Council,f1003818,11/11/2014,"12,225.60",BERTRAM TRADING LIMITED,BOOKS/NEWSPAPERS/PERIODICALS,CUSTOMERS & CORPORATE SERVICES
Rochdale Borough Council,ph100610,11/11/2014,"6,783.00",VIRGIN CARE BLACKPOOL LLP,PH OTHER CONTRACTS,PUBLIC HEALTH
Rochdale Borough Council,d1046162,12/11/2014,"9,881.72",KASHMIR YOUTH PROJECT,MISCELLANEOUS CAPITAL EXPENDITURE,ECONOMY AND ENVIRONMENT
Rochdale Borough Council,d1046180,12/11/2014,"50,000.00",UNITY PARTNERSHIP LTD,AGENCY STAFF,PROPERTY AND HIGHWAYS
Rochdale Borough Council,e1015095,12/11/2014,"666,888.18",AXIOM EDUCATION (ROCHDALE) LIMITED,PFI SCHEMES RPIX,EARLY HELP AND SCHOOLS
Rochdale Borough Council,q1003008,12/11/2014,"5,481.85",SPECIALIST COMPUTER CENTRES PLC,SOFTWARE,CUSTOMERS & CORPORATE SERVICES
Rochdale Borough Council,q1003013,12/11/2014,"11,516.00",ROCHDALE TOWN CENTRE MANAGEMENT CO,EVENTS,CUSTOMERS & CORPORATE SERVICES
Rochdale Borough Council,s1017620,12/11/2014,"75,000.00",NHS HEYWOOD MIDDLETON AND ROCHDALE CCG,SERVICE LEVEL AGREEMENTS,PHYSICAL DIS & OLDER PEOPLE
Rochdale Borough Council,d1046188,13/11/2014,"21,600.00",OUR LIFE,ACTIVITIES,ECONOMY AND ENVIRONMENT
Rochdale Borough Council,d1046202,13/11/2014,"7,246.50",URBAN VISION PARTNERSHIP LTD,AGENCY STAFF,ECONOMY AND ENVIRONMENT
Rochdale Borough Council,d1046227,13/11/2014,"21,600.00",UNITY PARTNERSHIP LTD,CONSULTANT FEES,PROPERTY AND HIGHWAYS
Rochdale Borough Council,e1015110,13/11/2014,"50,500.00",POSITIVE STEPS,EXTERNALLY MANAGED FUNDS,EARLY HELP AND SCHOOLS
Rochdale Borough Council,s1017626,13/11/2014,"5,503.00",STANNAH LIFT SERVICES LTD,IMPROVEMENTS-EXTENSIONS & ALTERATIONS,PHYSICAL DIS & OLDER PEOPLE
Rochdale Borough Council,s1017627,13/11/2014,"7,771.00",K P DODD CONSTRUCTION LIMITED,IMPROVEMENTS-EXTENSIONS & ALTERATIONS,PHYSICAL DIS & OLDER PEOPLE
Rochdale Borough Council,d1046266,14/11/2014,"9,000.00",ORCHARD  RECYCLING SERVICE LTD,EQUIPMENT - GENERAL,ECONOMY AND ENVIRONMENT
Rochdale Borough Council,d1046267,14/11/2014,"9,175.00",D AND M DEMOLITION AND RECYCLING LTD,REMOVAL/STRIP OUT COSTS,ECONOMY AND ENVIRONMENT
Rochdale Borough Council,d1046269,14/11/2014,"5,330.82",COMMERCIAL CONTRACT ENGINEERS LIMITED,TRANSACTIONS-EXPENDITURE,ECONOMY AND ENVIRONMENT
Rochdale Borough Council,d1046270,14/11/2014,"20,185.00",JONES LANG LASALLE,SECURITY,ECONOMY AND ENVIRONMENT
Rochdale Borough Council,d1046271,14/11/2014,"25,231.00",JONES LANG LASALLE,SECURITY,ECONOMY AND ENVIRONMENT
Rochdale Borough Council,d1046273,14/11/2014,"20,940.00",J S C PLAY SERVICES LIMITED,CAPITAL BUDGET ALLOCATION,ECONOMY AND ENVIRONMENT
Rochdale Borough Council,e1015135,17/11/2014,"14,000.00",AVENTIS SOLUTIONS LIMITED,AGENCY STAFF,EARLY HELP AND SCHOOLS
Rochdale Borough Council,q1003040,17/11/2014,"8,016.00",ROCHDALE MEMORIAL SERVICE LTD,EXPENSES - GENERAL,CUSTOMERS & CORPORATE SERVICES
Rochdale Borough Council,d1046296,18/11/2014,"5,263.00",ABC INDUSTRIAL DOORS LTD,TRANSACTIONS-EXPENDITURE,PROPERTY AND HIGHWAYS
Rochdale Borough Council,d1046328,18/11/2014,"12,500.00",THE BOND BOARD LIMITED,ACTIVITIES,ECONOMY AND ENVIRONMENT
Rochdale Borough Council,d1046329,18/11/2014,"17,500.00",THE BOND BOARD LIMITED,GRANTS TO OTHER BODIES,ECONOMY AND ENVIRONMENT
Rochdale Borough Council,d1046330,18/11/2014,"7,742.50",HRR SOLUTIONS,MINOR BUILDING WORKS,ECONOMY AND ENVIRONMENT
Rochdale Borough Council,d1046337,18/11/2014,"422,114.00",AEBI SCHMIDT UK LIMITED,PURCHASE OF VEHICLES,ECONOMY AND ENVIRONMENT
Rochdale Borough Council,d1046338,18/11/2014,"16,000.00",TELEREAL TRILLIUM,PROFESSIONAL FEES,ECONOMY AND ENVIRONMENT
Rochdale Borough Council,e1015136,18/11/2014,"387,543.21",INSPIREDSPACES ROCHDALE PROJECTCO2 LTD,PFI SCHEMES RPIX,EARLY HELP AND SCHOOLS
Rochdale Borough Council,e1015138,18/11/2014,"21,697.44",INSPIREDSPACES ROCHDALE LTD,IT SUPPORT,EARLY HELP AND SCHOOLS
Rochdale Borough Council,f1003832,18/11/2014,"8,116.00",CAPITA BUSINESS SERVICES LIMITED,SOFTWARE,FINANCE SERVICES
Rochdale Borough Council,ph100620,18/11/2014,"15,000.00",THE PENNINE ACUTE HOSPITALS NHS TRUST,PH OTHER CONTRACTS,PUBLIC HEALTH
Rochdale Borough Council,ph100621,18/11/2014,"50,474.00",THE PENNINE ACUTE HOSPITALS NHS TRUST,PH PENNINE ACUTE CONTRACT,PUBLIC HEALTH
Rochdale Borough Council,q1003050,18/11/2014,"7,947.65",SQUIRE PATTON BOGGS UK LLP,LEGAL SERVICES EXTERNAL,ECONOMY AND ENVIRONMENT
Rochdale Borough Council,q1003053,18/11/2014,"5,746.00",SQUIRE PATTON BOGGS UK LLP,LEGAL SERVICES EXTERNAL,ECONOMY AND ENVIRONMENT
Rochdale Borough Council,d1046342,19/11/2014,"5,000.00",A E YATES LTD,HIGHWAYS STAFF TIME,ECONOMY AND ENVIRONMENT
Rochdale Borough Council,e1015152,19/11/2014,"19,056.84",INSPIREDSPACES ROCHDALE LTD,IT SUPPORT,EARLY HELP AND SCHOOLS
Rochdale Borough Council,e1015153,19/11/2014,"26,329.59",AXIOM EDUCATION (ROCHDALE) LIMITED,IMPROVEMENTS-MODERNISATION,EARLY HELP AND SCHOOLS
Rochdale Borough Council,q1003059,19/11/2014,"6,811.00",XEROX UK LTD,TRANSACTIONS-EXPENDITURE,CUSTOMERS & CORPORATE SERVICES
Rochdale Borough Council,q1003062,19/11/2014,"17,095.16",NORTHGATE INFORMATION SOLUTIONS UK LTD,SOFTWARE,CUSTOMERS & CORPORATE SERVICES
Rochdale Borough Council,q1003070,19/11/2014,"12,240.00",DAISY COMMUNICATIONS LTD,IT MAINTENANCE,CUSTOMERS & CORPORATE SERVICES
Rochdale Borough Council,q1003071,19/11/2014,"20,000.00",KORUS RECRUITMENT GROUP LTD,CAPITAL SALARIES,CUSTOMERS & CORPORATE SERVICES
Rochdale Borough Council,s1017671,19/11/2014,"6,080.00",HIGH BARN CONSTRUCTION LIMITED,IMPROVEMENTS-EXTENSIONS & ALTERATIONS,PHYSICAL DIS & OLDER PEOPLE
Rochdale Borough Council,s1017677,19/11/2014,"7,890.00",HIGH BARN CONSTRUCTION LIMITED,IMPROVEMENTS-EXTENSIONS & ALTERATIONS,PHYSICAL DIS & OLDER PEOPLE
Rochdale Borough Council,w1000380,19/11/2014,"39,400.00",ROCHDALE COMMUNITY TRANSPORT,SERVICE LEVEL AGREEMENTS,PHYSICAL DIS & OLDER PEOPLE
Rochdale Borough Council,d1046396,20/11/2014,"8,691.00",TOMAX BUILDING SERVICES LTD,IMPROVEMENTS-MODERNISATION,PROPERTY AND HIGHWAYS
Rochdale Borough Council,e1015161,20/11/2014,"288,180.66",INSPIREDSPACES ROCHDALE PROJECT CO1 LTD,PFI SCHEMES RPIX,EARLY HELP AND SCHOOLS
Rochdale Borough Council,e1015164,20/11/2014,"13,778.00",OLDHAM METROPOLITAN BOROUGH COUNCIL,OTHER EST - SEN PROVISION,EARLY HELP AND SCHOOLS
Rochdale Borough Council,e1015169,20/11/2014,"11,951.10",BEVAN BRITTAN LLP,CONSULTANTS FEES,EARLY HELP AND SCHOOLS
Rochdale Borough Council,q1003077,20/11/2014,"8,193.72",Misco,PURCHASE OF ICT HARDWARE,CUSTOMERS & CORPORATE SERVICES
Rochdale Borough Council,s1017678,20/11/2014,"9,633.00",TYNETEC LTD,EQUIPMENT - GENERAL,PHYSICAL DIS & OLDER PEOPLE
Rochdale Borough Council,d1046428,21/11/2014,"11,200.00",ROBERT WHETHAM ASSOCIATES,ARCHITECTS FEES,PROPERTY AND HIGHWAYS
Rochdale Borough Council,d1046429,21/11/2014,"8,160.00",EMO OIL LIMITED,TRANSACTIONS-EXPENDITURE,ECONOMY AND ENVIRONMENT
Rochdale Borough Council,d1046430,21/11/2014,"8,082.30",ARCO,EQUIPMENT - GENERAL,ECONOMY AND ENVIRONMENT
Rochdale Borough Council,d1046433,21/11/2014,"5,267.44",NORTHGATE VEHICLE HIRE LIMITED,TRANSACTIONS-EXPENDITURE,ECONOMY AND ENVIRONMENT
Rochdale Borough Council,d1046434,21/11/2014,"6,241.69",NORTHGATE VEHICLE HIRE LIMITED,TRANSACTIONS-EXPENDITURE,ECONOMY AND ENVIRONMENT
Rochdale Borough Council,d1046435,21/11/2014,"20,833.35",ROCHDALE & DIST CITIZENS ADVICE BUREAU,GRANTS TO THE VOLUNTARY SECTOR,ECONOMY AND ENVIRONMENT
Rochdale Borough Council,d1046443,21/11/2014,"10,985.00",NORTHERN INSULATION CONTRACTORS,IMPROVEMENTS-MODERNISATION,EARLY HELP AND SCHOOLS
Rochdale Borough Council,d1046448,21/11/2014,"8,004.00",VIZWEAR,"CLOTHES, UNIFORM AND LAUNDRY",ECONOMY AND ENVIRONMENT
Rochdale Borough Council,e1015178,21/11/2014,"23,285.65",AXIOM EDUCATION (ROCHDALE) LIMITED,MEALS,EARLY HELP AND SCHOOLS
Rochdale Borough Council,e1015179,21/11/2014,"17,448.08",NHS HEYWOOD MIDDLETON AND ROCHDALE CCG,AGENCY STAFF,CHILDREN�S SOCIAL CARE
Rochdale Borough Council,e1015183,21/11/2014,"5,349.72",AXIOM EDUCATION (ROCHDALE) LIMITED,"DEV CAP - NEW CONSTRUCTION,CONVERSION",EARLY HELP AND SCHOOLS
Rochdale Borough Council,d1046464,22/11/2014,"69,152.00",UNITY PARTNERSHIP LTD,ROADWORKS,PROPERTY AND HIGHWAYS
Rochdale Borough Council,d1046480,24/11/2014,"32,323.79",JONES LANG LASALLE,SECURITY,ECONOMY AND ENVIRONMENT
Rochdale Borough Council,d1046482,24/11/2014,"10,000.00",THE SANCTUARY TRUST,ACTIVITIES,ECONOMY AND ENVIRONMENT
Rochdale Borough Council,d1046483,24/11/2014,"5,822.00",THE SANCTUARY TRUST,ACTIVITIES,ECONOMY AND ENVIRONMENT
Rochdale Borough Council,q1003104,24/11/2014,"10,000.00",SENITOR RECRUITMENT,CAPITAL SALARIES,CUSTOMERS & CORPORATE SERVICES
Rochdale Borough Council,d1046516,25/11/2014,"5,368.50",PLAYBROKERS LTD,EQUIPMENT - GENERAL,ECONOMY AND ENVIRONMENT
Rochdale Borough Council,d1046535,25/11/2014,"16,757.54",F S MOULT & SON,DRAINAGE AND SEWERS,ECONOMY AND ENVIRONMENT
Rochdale Borough Council,e1015201,25/11/2014,"187,893.74",INSPIREDSPACES ROCHDALE PROJECTCO2 LTD,IMPROVEMENTS-MODERNISATION,EARLY HELP AND SCHOOLS
Rochdale Borough Council,e1015213,25/11/2014,"159,554.17",INSPIREDSPACES ROCHDALE PROJECTCO2 LTD,IMPROVEMENTS-MODERNISATION,EARLY HELP AND SCHOOLS
Rochdale Borough Council,e1015215,25/11/2014,"22,734.00",PONTVILLE SCHOOL,OTHER LA`S - SEN PROVISION,EARLY HELP AND SCHOOLS
Rochdale Borough Council,e1015216,25/11/2014,"31,848.00",WINGS SCHOOL,OTHER LA`S - SEN PROVISION,EARLY HELP AND SCHOOLS
Rochdale Borough Council,e1015217,25/11/2014,"13,059.00",ROSSENDALE SCHOOL PRIORY,OTHER LA`S - SEN PROVISION,EARLY HELP AND SCHOOLS
Rochdale Borough Council,e1015218,25/11/2014,"13,059.00",ROSSENDALE SCHOOL PRIORY,OTHER LA`S - SEN PROVISION,EARLY HELP AND SCHOOLS
Rochdale Borough Council,e1015219,25/11/2014,"13,059.00",ROSSENDALE SCHOOL PRIORY,OTHER LA`S - SEN PROVISION,EARLY HELP AND SCHOOLS
Rochdale Borough Council,e1015220,25/11/2014,"13,059.00",ROSSENDALE SCHOOL PRIORY,OTHER LA`S - SEN PROVISION,EARLY HELP AND SCHOOLS
Rochdale Borough Council,f1003852,26/11/2014,"7,975.00",PLAIN ENGLISH CAMPAIGN LTD,TRAINING-NON QUALIFICATION,FINANCE SERVICES
Rochdale Borough Council,d1046557,27/11/2014,"8,839.00",PLAYDALE PLAYGROUNDS LIMITED,PURCHASE OF OTHER EQUIPMENT,ECONOMY AND ENVIRONMENT
Rochdale Borough Council,d1046560,27/11/2014,"97,499.00",JOHNSTON SWEEPERS LIMITED,PURCHASE OF VEHICLES,ECONOMY AND ENVIRONMENT
Rochdale Borough Council,d1046564,27/11/2014,"30,300.00",EMO OIL LIMITED,TRANSACTIONS-EXPENDITURE,ECONOMY AND ENVIRONMENT
Rochdale Borough Council,d1046565,27/11/2014,"28,280.00",EMO OIL LIMITED,TRANSACTIONS-EXPENDITURE,ECONOMY AND ENVIRONMENT
Rochdale Borough Council,d1046572,27/11/2014,"8,839.00",PLAYDALE PLAYGROUNDS LIMITED,PURCHASE OF OTHER EQUIPMENT,ECONOMY AND ENVIRONMENT
Rochdale Borough Council,e1015249,27/11/2014,"10,658.00",BELMONT SCHOOL LIMITED,OTHER LA`S - SEN PROVISION,EARLY HELP AND SCHOOLS
Rochdale Borough Council,e1015250,27/11/2014,"10,658.00",BELMONT SCHOOL LIMITED,OTHER LA`S - SEN PROVISION,EARLY HELP AND SCHOOLS
Rochdale Borough Council,e1015251,27/11/2014,"10,658.00",BELMONT SCHOOL LIMITED,OTHER LA`S - SEN PROVISION,EARLY HELP AND SCHOOLS
Rochdale Borough Council,e1015252,27/11/2014,"10,658.00",BELMONT SCHOOL LIMITED,OTHER LA`S - SEN PROVISION,EARLY HELP AND SCHOOLS
Rochdale Borough Council,e1015253,27/11/2014,"9,810.12",BELMONT SCHOOL LIMITED,OTHER LA`S - SEN PROVISION,EARLY HELP AND SCHOOLS
Rochdale Borough Council,e1015254,27/11/2014,"10,347.68",BELMONT SCHOOL LIMITED,OTHER LA`S - SEN PROVISION,EARLY HELP AND SCHOOLS
Rochdale Borough Council,q1003128,27/11/2014,"9,111.56",EXPERIAN LIMITED,MISC CHARGES,CUSTOMERS & CORPORATE SERVICES
Rochdale Borough Council,q1003131,27/11/2014,"15,000.00",STHREE PARTNERSHIP LLP,CAPITAL SALARIES,CUSTOMERS & CORPORATE SERVICES
Rochdale Borough Council,q1003132,27/11/2014,"14,000.00",STHREE PARTNERSHIP LLP,CAPITAL SALARIES,CUSTOMERS & CORPORATE SERVICES
Rochdale Borough Council,q1003134,27/11/2014,"7,200.00",MAUREEN DALEY LTD,TRAINING,CHILDREN�S SOCIAL CARE
Rochdale Borough Council,q1003135,27/11/2014,"10,560.00",NDI RECOGNITION SYSTEMS LTD,SECURITY,CUSTOMERS & CORPORATE SERVICES
Rochdale Borough Council,d1046617,28/11/2014,"10,650.00",D AND M DEMOLITION AND RECYCLING LTD,REMOVAL/STRIP OUT COSTS,ECONOMY AND ENVIRONMENT
Rochdale Borough Council,d1046628,28/11/2014,"14,410.00",BALMERS GM LTD,PURCHASE OF PLANT AND MACHINERY,ECONOMY AND ENVIRONMENT
Rochdale Borough Council,e1015267,28/11/2014,"10,000.00",ROCHDALE DEVELOPMENT AGENCY,ACTIVITIES,EARLY HELP AND SCHOOLS
Rochdale Borough Council,e1015268,28/11/2014,"10,317.67",THE ROYAL NATIONAL COLLEGE FOR THE BLIND,OTHER LA`S - SEN PROVISION,EARLY HELP AND SCHOOLS
Rochdale Borough Council,x1009994,28/11/2014,"18,000.00",NUGENT CARE ,ADOPTION PAYMENTS,CHILDREN�S SOCIAL CARE
Rochdale Borough Council,d1046639,01/12/2014,"5,375.00",MACE LIMITED,CONSULTANT FEES,ECONOMY AND ENVIRONMENT
Rochdale Borough Council,ph100635,01/12/2014,"227,150.00",PENNINE CARE NHS,PH PENNINE CARE CONTRACT,PUBLIC HEALTH
Rochdale Borough Council,d1046697,02/12/2014,"22,470.73",BRAHM FUNDCO 2 LTD,PFI SCHEMES RPI,ECONOMY AND ENVIRONMENT
Rochdale Borough Council,d1046698,02/12/2014,"382,000.00",COMMUNITY LIGHTING PARTNERSHIP ROCHDALE LTD,PFI SCHEMES RPIX,PROPERTY AND HIGHWAYS
Rochdale Borough Council,e1015284,02/12/2014,"9,768.99",BRIGHT FUTURES SCHOOL LTD,OTHER LA`S - SEN PROVISION,EARLY HELP AND SCHOOLS
Rochdale Borough Council,e1015285,02/12/2014,"10,427.00",BEECHKEYS CARE AND EDUCATION,OTHER LA`S - SEN PROVISION,EARLY HELP AND SCHOOLS
Rochdale Borough Council,e1015289,02/12/2014,"5,314.13",MOTT MACDONALD LIMITED,CONSULTANTS FEES,EARLY HELP AND SCHOOLS
Rochdale Borough Council,ph100637,02/12/2014,"10,000.00",PENNINE CARE NHS,PH PENNINE CARE CONTRACT,PUBLIC HEALTH
Rochdale Borough Council,q1003145,02/12/2014,"18,000.00",UPDATA INFRASTRUCTURE UK LTD,COMMUNICATION AND COMPUTING - GENERAL,CUSTOMERS & CORPORATE SERVICES
Rochdale Borough Council,q1003152,02/12/2014,"197,682.00",FREEDOM COMMUNICATIONS,PURCHASE OF ICT SOFTWARE,CUSTOMERS & CORPORATE SERVICES
Rochdale Borough Council,x1010006,02/12/2014,"5,920.00",FRANK WHITELOCK,CONSULTANT FEES,EARLY HELP AND SCHOOLS
Rochdale Borough Council,d1046710,03/12/2014,"39,914.42",URS INFRASTRUCTURE AND ENVIRONMENT UK LTD,DEMOLITION,ECONOMY AND ENVIRONMENT
Rochdale Borough Council,e1015315,03/12/2014,"7,728.00",GATENBY SANDERSON,AGENCY STAFF,CHILDREN�S SOCIAL CARE
Rochdale Borough Council,q1003156,03/12/2014,"45,369.91",NHS HEYWOOD MIDDLETON AND ROCHDALE CCG,SERVICES - GENERAL,CUSTOMERS & CORPORATE SERVICES
Rochdale Borough Council,s1017744,03/12/2014,"8,780.85",NHS HEYWOOD MIDDLETON AND ROCHDALE CCG,SOCIAL SERVICES OTHER,PHYSICAL DIS & OLDER PEOPLE
Rochdale Borough Council,d1046729,04/12/2014,"10,000.00",JMHA,IMPROVEMENTS-MODERNISATION,ECONOMY AND ENVIRONMENT
Rochdale Borough Council,f1003868,04/12/2014,"5,600.00",PRICE WATERHOUSE COOPERS,PROVISIONS UTILISED IN YEAR,FINANCE SERVICES
Rochdale Borough Council,d1046770,05/12/2014,"5,226.26",OLDHAM MBC,AGENCY STAFF,PROPERTY AND HIGHWAYS
Rochdale Borough Council,e1015326,05/12/2014,"38,083.33",CRUCKTON HALL SCHOOL,OTHER LA`S - SEN PROVISION,EARLY HELP AND SCHOOLS
Rochdale Borough Council,e1015327,05/12/2014,"38,083.33",CRUCKTON HALL SCHOOL,OTHER LA`S - SEN PROVISION,EARLY HELP AND SCHOOLS
Rochdale Borough Council,e1015328,05/12/2014,"12,209.76",THE TOGETHER TRUST,OTHER LA`S - SEN PROVISION,EARLY HELP AND SCHOOLS
Rochdale Borough Council,e1015329,05/12/2014,"12,658.99",THE TOGETHER TRUST,OTHER LA`S - SEN PROVISION,EARLY HELP AND SCHOOLS
Rochdale Borough Council,e1015330,05/12/2014,"12,253.08",THE TOGETHER TRUST,OTHER LA`S - SEN PROVISION,EARLY HELP AND SCHOOLS
Rochdale Borough Council,e1015331,05/12/2014,"11,037.85",THE TOGETHER TRUST,OTHER LA`S - SEN PROVISION,EARLY HELP AND SCHOOLS
Rochdale Borough Council,e1015332,05/12/2014,"11,483.26",THE TOGETHER TRUST,OTHER LA`S - SEN PROVISION,EARLY HELP AND SCHOOLS
Rochdale Borough Council,e1015333,05/12/2014,"13,077.00",NEW COLLEGE WORCESTER,OTHER LA`S - SEN PROVISION,EARLY HELP AND SCHOOLS
Rochdale Borough Council,ph100640,05/12/2014,"142,688.92",BIG LIFE CENTRES,PH BIG LIFE CONTRACT,PUBLIC HEALTH
Rochdale Borough Council,q1003168,05/12/2014,"22,400.00",STHREE PARTNERSHIP LLP,CAPITAL SALARIES,CUSTOMERS & CORPORATE SERVICES
Rochdale Borough Council,q1003173,05/12/2014,"15,600.00",SENITOR RECRUITMENT,CAPITAL SALARIES,CUSTOMERS & CORPORATE SERVICES
Rochdale Borough Council,s1017767,05/12/2014,"5,530.00",MICK TAYLOR LIMITED,TRANSACTIONS-EXPENDITURE,PHYSICAL DIS & OLDER PEOPLE
Rochdale Borough Council,d1046804,08/12/2014,"5,911.48",KASHMIR YOUTH PROJECT,MISCELLANEOUS CAPITAL EXPENDITURE,ECONOMY AND ENVIRONMENT
Rochdale Borough Council,d1046810,08/12/2014,"6,196.32",BRAHM FUNDCO 2 LTD,PFI SCHEMES RPI,ECONOMY AND ENVIRONMENT
Rochdale Borough Council,d1046811,08/12/2014,"5,310.00",EMO OIL LIMITED,OIL,ECONOMY AND ENVIRONMENT
Rochdale Borough Council,d1046812,08/12/2014,"11,362.00",EARLEY ORNAMENTALS LTD,"TREES, SHRUBS, PLANTS",ECONOMY AND ENVIRONMENT
Rochdale Borough Council,d1046820,08/12/2014,"23,000.00",PROFILE SECURITY SERVICES LIMITED,SECURITY,ECONOMY AND ENVIRONMENT
Rochdale Borough Council,d1046825,08/12/2014,"25,589.34",RIVERSIDE TRUCK RENTAL,EQUIPMENT - GENERAL,ECONOMY AND ENVIRONMENT
Rochdale Borough Council,d1046827,08/12/2014,"11,644.56",STRAIGHT MANUFACTURING LTD,PURCHASE OF OTHER EQUIPMENT,ECONOMY AND ENVIRONMENT
Rochdale Borough Council,e1015344,08/12/2014,"5,773.94",DIOCESE OF SALFORD,IMPROVEMENTS-MODERNISATION,EARLY HELP AND SCHOOLS
Rochdale Borough Council,f1003872,08/12/2014,"11,784.50",MERITEC LIMITED,AGENCY STAFF,FINANCE SERVICES
Rochdale Borough Council,ph100643,08/12/2014,"50,474.00",THE PENNINE ACUTE HOSPITALS NHS TRUST,PH PENNINE ACUTE CONTRACT,PUBLIC HEALTH
Rochdale Borough Council,ph100644,08/12/2014,"15,000.00",THE PENNINE ACUTE HOSPITALS NHS TRUST,PH OTHER CONTRACTS,PUBLIC HEALTH
Rochdale Borough Council,q1003184,08/12/2014,"15,640.00",TURNING POINT SERVICES LIMITED,SERVICES - GENERAL,CUSTOMERS & CORPORATE SERVICES
Rochdale Borough Council,d1046853,09/12/2014,"21,295.00",GROUNDWORK OLDHAM AND ROCHDALE,MISCELLANEOUS CAPITAL EXPENDITURE,ECONOMY AND ENVIRONMENT
Rochdale Borough Council,e1015345,09/12/2014,"6,175.00",DR CAROLINE WHITE,ACTIVITIES,EARLY HELP AND SCHOOLS
Rochdale Borough Council,e1015346,09/12/2014,"669,886.43",AXIOM EDUCATION (ROCHDALE) LIMITED,PFI SCHEMES RPIX,EARLY HELP AND SCHOOLS
Rochdale Borough Council,ph100649,09/12/2014,"7,634.00",VIRGIN CARE BLACKPOOL LLP,PH OTHER CONTRACTS,PUBLIC HEALTH
Rochdale Borough Council,x1010074,09/12/2014,"11,320.00",NSPCC REGISTERED CHARITY,CONSULTANT FEES,CHILDREN�S SOCIAL CARE
Rochdale Borough Council,d1046885,10/12/2014,"46,245.00",COMPASS MINERALS UK LIMITED,MATERIAL - GENERAL,PROPERTY AND HIGHWAYS
Rochdale Borough Council,d1046896,10/12/2014,"2,400,000.00",STYLES AND WOOD,NEW CONSTRUCTION,ECONOMY AND ENVIRONMENT
Rochdale Borough Council,d1046897,10/12/2014,"11,483.33",NORTHGATE INFORMATION SOLUTIONS UK LTD,SERVICES - GENERAL,ECONOMY AND ENVIRONMENT
Rochdale Borough Council,e1015368,10/12/2014,"14,473.80",ROC NORTHWEST LTD,OTHER LA`S - SEN PROVISION,EARLY HELP AND SCHOOLS
Rochdale Borough Council,s1017793,10/12/2014,"30,000.00",ELDERCARE UK LTD,TELEPHONE EXPENDITURE,PHYSICAL DIS & OLDER PEOPLE
Rochdale Borough Council,x1010079,10/12/2014,"18,000.00",CARITAS CARE LTD,ADOPTION PAYMENTS,CHILDREN�S SOCIAL CARE
Rochdale Borough Council,x1010080,10/12/2014,"28,667.00",CARITAS CARE LTD,ADOPTION PAYMENTS,CHILDREN�S SOCIAL CARE
Rochdale Borough Council,x1010081,10/12/2014,"28,667.00",CARITAS CARE LTD,ADOPTION PAYMENTS,CHILDREN�S SOCIAL CARE
Rochdale Borough Council,x1010082,10/12/2014,"28,667.00",ADOPTION MATTERS NORTHWEST,ADOPTION PAYMENTS,CHILDREN�S SOCIAL CARE
Rochdale Borough Council,d1046900,11/12/2014,"8,398.06",BURNT TREE GROUP,TRANSACTIONS-EXPENDITURE,ECONOMY AND ENVIRONMENT
Rochdale Borough Council,d1046908,11/12/2014,"22,470.73",BRAHM FUNDCO 2 LTD,PFI SCHEMES RPI,ECONOMY AND ENVIRONMENT
Rochdale Borough Council,d1046924,11/12/2014,"22,000.00",ACIES CIVIL AND STRUCTURAL,SURVEYORS FEES,ECONOMY AND ENVIRONMENT
Rochdale Borough Council,d1046925,11/12/2014,"5,000.00",SCOTT HUGHES,ENGINEERS FEES,ECONOMY AND ENVIRONMENT
Rochdale Borough Council,d1046935,11/12/2014,"8,326.06",BURNT TREE GROUP,TRANSACTIONS-EXPENDITURE,ECONOMY AND ENVIRONMENT
Rochdale Borough Council,e1015374,11/12/2014,"291,641.88",INSPIREDSPACES ROCHDALE PROJECT CO1 LTD,PFI SCHEMES RPIX,EARLY HELP AND SCHOOLS
Rochdale Borough Council,e1015376,11/12/2014,"5,227.40",BEVAN BRITTAN LLP,CONSULTANTS FEES,EARLY HELP AND SCHOOLS
Rochdale Borough Council,e1015381,11/12/2014,"9,273.74",MIDDLETON TECHNOLOGY SCHOOL FUND,ELECTRICITY,EARLY HELP AND SCHOOLS
Rochdale Borough Council,e1015382,11/12/2014,"8,310.37",THE TOGETHER TRUST,OTHER LA`S - SEN PROVISION,EARLY HELP AND SCHOOLS
Rochdale Borough Council,e1015383,11/12/2014,"9,984.18",THE TOGETHER TRUST,OTHER LA`S - SEN PROVISION,EARLY HELP AND SCHOOLS
Rochdale Borough Council,e1015385,11/12/2014,"8,745.88",THE TOGETHER TRUST,OTHER LA`S - SEN PROVISION,EARLY HELP AND SCHOOLS
Rochdale Borough Council,e1015386,11/12/2014,"13,495.14",THE TOGETHER TRUST,OTHER LA`S - SEN PROVISION,EARLY HELP AND SCHOOLS
Rochdale Borough Council,e1015387,11/12/2014,"387,378.16",INSPIREDSPACES ROCHDALE PROJECTCO2 LTD,PFI SCHEMES RPIX,EARLY HELP AND SCHOOLS
Rochdale Borough Council,e1015388,11/12/2014,"16,083.83",THE TOGETHER TRUST,OTHER LA`S - SEN PROVISION,EARLY HELP AND SCHOOLS
Rochdale Borough Council,e1015389,11/12/2014,"8,310.37",THE TOGETHER TRUST,OTHER LA`S - SEN PROVISION,EARLY HELP AND SCHOOLS
Rochdale Borough Council,e1015390,11/12/2014,"9,857.55",THE TOGETHER TRUST,OTHER LA`S - SEN PROVISION,EARLY HELP AND SCHOOLS
Rochdale Borough Council,e1015395,11/12/2014,"54,622.68",DIOCESE OF SALFORD,IMPROVEMENTS-MODERNISATION,EARLY HELP AND SCHOOLS
Rochdale Borough Council,f1003877,11/12/2014,"5,000.00",CAPITA TREASURY SOLUTIONS LTD,CONSULTANT FEES,FINANCE SERVICES
Rochdale Borough Council,q1003204,11/12/2014,"45,950.00",OPTEVIA LTD,PURCHASE OF ICT SOFTWARE,CUSTOMERS & CORPORATE SERVICES
Rochdale Borough Council,q1003205,11/12/2014,"11,050.00",OPTEVIA LTD,PURCHASE OF ICT SOFTWARE,CUSTOMERS & CORPORATE SERVICES
Rochdale Borough Council,d1046944,12/12/2014,"5,225.00",CHARTERED INSTITUTE OF HOUSING,PROFESSIONAL FEES,ECONOMY AND ENVIRONMENT
Rochdale Borough Council,d1046962,12/12/2014,"300,000.00",OTIS LTD,NEW CONSTRUCTION,ECONOMY AND ENVIRONMENT
Rochdale Borough Council,e1015409,12/12/2014,"50,500.00",POSITIVE STEPS,EXTERNALLY MANAGED FUNDS,EARLY HELP AND SCHOOLS
Rochdale Borough Council,s1017802,12/12/2014,"6,255.60",SUPRA UK LIMITED,EQUIPMENT - GENERAL,PHYSICAL DIS & OLDER PEOPLE
Rochdale Borough Council,s1017805,12/12/2014,"5,020.00",ADAPT BUILDING SERVICES LTD,TRANSACTIONS-EXPENDITURE,PHYSICAL DIS & OLDER PEOPLE
Rochdale Borough Council,x1010094,12/12/2014,"18,000.00",ADOPTION MATTERS NORTHWEST,ADOPTION PAYMENTS,CHILDREN�S SOCIAL CARE
Rochdale Borough Council,d1046972,15/12/2014,"11,528.00",D AND M DEMOLITION AND RECYCLING LTD,REMOVAL/STRIP OUT COSTS,ECONOMY AND ENVIRONMENT
Rochdale Borough Council,f1003880,15/12/2014,"5,387.20",MERITEC LIMITED,AGENCY STAFF,FINANCE SERVICES
Rochdale Borough Council,d1046990,16/12/2014,"24,922.08",STRAIGHT MANUFACTURING LTD,PURCHASE OF OTHER EQUIPMENT,ECONOMY AND ENVIRONMENT
Rochdale Borough Council,d1046991,16/12/2014,"23,289.12",STRAIGHT MANUFACTURING LTD,PURCHASE OF OTHER EQUIPMENT,ECONOMY AND ENVIRONMENT
Rochdale Borough Council,d1046992,16/12/2014,"10,225.44",STRAIGHT MANUFACTURING LTD,PURCHASE OF OTHER EQUIPMENT,ECONOMY AND ENVIRONMENT
Rochdale Borough Council,d1046995,16/12/2014,"30,278.00",JONES LANG LASALLE,SECURITY,ECONOMY AND ENVIRONMENT
Rochdale Borough Council,d1047024,16/12/2014,"9,742.30",INTEGRATED WATER SERVICES LIMITED,PROPERTY - WORKS ELEMENT,ECONOMY AND ENVIRONMENT
Rochdale Borough Council,d1047025,16/12/2014,"6,075.00",ROCHDALE CIRCULAR DISTRIBUTORS,EQUIPMENT - GENERAL,ECONOMY AND ENVIRONMENT
Rochdale Borough Council,f1003883,16/12/2014,"38,480.00",CIVICA UK LIMITED,AGENCY STAFF,FINANCE SERVICES
Rochdale Borough Council,f1003887,16/12/2014,"7,600.00",NORTHGATE INFORMATION SOLUTIONS UK LTD,SOFTWARE,FINANCE SERVICES
Rochdale Borough Council,q1003241,16/12/2014,"6,751.89",ROYAL MAIL GROUP PLC,POSTAGE,CUSTOMERS & CORPORATE SERVICES
Rochdale Borough Council,d1047031,17/12/2014,"10,225.44",STRAIGHT MANUFACTURING LTD,PURCHASE OF OTHER EQUIPMENT,ECONOMY AND ENVIRONMENT
Rochdale Borough Council,d1047032,17/12/2014,"24,922.08",STRAIGHT MANUFACTURING LTD,PURCHASE OF OTHER EQUIPMENT,ECONOMY AND ENVIRONMENT
Rochdale Borough Council,d1047033,17/12/2014,"10,225.44",STRAIGHT MANUFACTURING LTD,PURCHASE OF OTHER EQUIPMENT,ECONOMY AND ENVIRONMENT
Rochdale Borough Council,d1047034,17/12/2014,"24,922.08",STRAIGHT MANUFACTURING LTD,PURCHASE OF OTHER EQUIPMENT,ECONOMY AND ENVIRONMENT
Rochdale Borough Council,d1047035,17/12/2014,"23,289.12",STRAIGHT MANUFACTURING LTD,PURCHASE OF OTHER EQUIPMENT,ECONOMY AND ENVIRONMENT
Rochdale Borough Council,d1047036,17/12/2014,"11,644.56",STRAIGHT MANUFACTURING LTD,PURCHASE OF OTHER EQUIPMENT,ECONOMY AND ENVIRONMENT
Rochdale Borough Council,d1047037,17/12/2014,"10,225.44",STRAIGHT MANUFACTURING LTD,PURCHASE OF OTHER EQUIPMENT,ECONOMY AND ENVIRONMENT
Rochdale Borough Council,d1047052,17/12/2014,"6,739.20",CORAL PRODUCTS PLC,PURCHASE OF OTHER EQUIPMENT,ECONOMY AND ENVIRONMENT
Rochdale Borough Council,q1003249,17/12/2014,"9,930.00",ME LEARNING LIMITED,TRAINING,CHILDREN�S SOCIAL CARE
Rochdale Borough Council,q1003250,17/12/2014,"6,018.08",PHOENIX SOFTWARE LIMITED,SOFTWARE,CUSTOMERS & CORPORATE SERVICES
Rochdale Borough Council,q1003251,17/12/2014,"41,044.18",XEROX UK LTD,TRANSACTIONS-EXPENDITURE,CUSTOMERS & CORPORATE SERVICES
Rochdale Borough Council,s1017830,17/12/2014,"7,750.00",COUNCIL FOR VOLUNTARY SERVICE ROCHDALE,VOLUNTARY ASSOCIATIONS,PHYSICAL DIS & OLDER PEOPLE
Rochdale Borough Council,s1017831,17/12/2014,"27,000.00",COUNCIL FOR VOLUNTARY SERVICE ROCHDALE,VOLUNTARY ASSOCIATIONS,PHYSICAL DIS & OLDER PEOPLE
Rochdale Borough Council,w1000442,17/12/2014,"8,000.00",THE PARAMOUNT GROUP,RESIDENTIAL LONG TERM,LEARNING DIS & MENTAL HEALTH
Rochdale Borough Council,w1000443,17/12/2014,"16,000.00",THE PARAMOUNT GROUP,RESIDENTIAL LONG TERM,LEARNING DIS & MENTAL HEALTH
Rochdale Borough Council,d1047084,18/12/2014,"13,800.00",SALFORD CITY COUNCIL,AGMA,ECONOMY AND ENVIRONMENT
Rochdale Borough Council,e1015447,18/12/2014,"31,993.60",AXIOM EDUCATION (ROCHDALE) LIMITED,MEALS,EARLY HELP AND SCHOOLS
Rochdale Borough Council,q1003254,18/12/2014,"93,340.42",SOFTCAT LTD,PURCHASE OF ICT SOFTWARE,CUSTOMERS & CORPORATE SERVICES
Rochdale Borough Council,q1003256,18/12/2014,"121,352.00",AGILISYS LIMITED,AGILISYS CONTRACT,CUSTOMERS & CORPORATE SERVICES
Rochdale Borough Council,q1003257,18/12/2014,"121,352.00",AGILISYS LIMITED,AGILISYS CONTRACT,CUSTOMERS & CORPORATE SERVICES
Rochdale Borough Council,q1003258,18/12/2014,"121,352.00",AGILISYS LIMITED,AGILISYS CONTRACT,CUSTOMERS & CORPORATE SERVICES
Rochdale Borough Council,q1003265,18/12/2014,"157,560.34",AGILISYS LIMITED,DISPOSAL OF FIXED ASSET - ASSET NBV,CUSTOMERS & CORPORATE SERVICES
Rochdale Borough Council,q1003266,18/12/2014,"25,836.00",AGILISYS LIMITED,AGILISYS CONTRACT,CUSTOMERS & CORPORATE SERVICES
Rochdale Borough Council,s1017846,18/12/2014,"7,035.00",HIGH BARN CONSTRUCTION LIMITED,IMPROVEMENTS-EXTENSIONS & ALTERATIONS,PHYSICAL DIS & OLDER PEOPLE
Rochdale Borough Council,s1017847,18/12/2014,"17,990.00",BROADWAY BUILDING CONTRACTORS OLDHAM LTD,IMPROVEMENTS-EXTENSIONS & ALTERATIONS,PHYSICAL DIS & OLDER PEOPLE
Rochdale Borough Council,d1047109,19/12/2014,"5,358.00",J A CRYER EXCAVATION & GROUNDWORK CONTRACTORS LTD,IMPROVEMENTS-MODERNISATION,ECONOMY AND ENVIRONMENT
Rochdale Borough Council,e1015466,19/12/2014,"12,139.34",ROYAL SCHOOL FOR THE DEAF DERBY,OTHER LA`S - SEN PROVISION,EARLY HELP AND SCHOOLS
Rochdale Borough Council,e1015472,19/12/2014,"8,220.00",DR CAROLINE WHITE,ACTIVITIES,EARLY HELP AND SCHOOLS
Rochdale Borough Council,q1003268,19/12/2014,"6,399.00",RIBA ENTERPRISES LIMITED,SOFTWARE,CUSTOMERS & CORPORATE SERVICES
Rochdale Borough Council,q1003271,19/12/2014,"18,039.90",Misco,PURCHASE OF ICT HARDWARE,CUSTOMERS & CORPORATE SERVICES
Rochdale Borough Council,q1003275,19/12/2014,"19,621.00",UPDATA INFRASTRUCTURE UK LTD,COMMUNICATION AND COMPUTING - GENERAL,CUSTOMERS & CORPORATE SERVICES
Rochdale Borough Council,d1047123,22/12/2014,"5,000.00",THE SANCTUARY TRUST,GRANTS TO THE VOLUNTARY SECTOR,ECONOMY AND ENVIRONMENT
Rochdale Borough Council,d1047131,22/12/2014,"5,491.40",H BELL & SONS ROCHDALE LTD,IMPROVEMENTS-MODERNISATION,EARLY HELP AND SCHOOLS
Rochdale Borough Council,d1047132,22/12/2014,"9,758.89",BELL  DECORATING GROUP LTD,REPAIRS & ALTS OF BUILDINGS,EARLY HELP AND SCHOOLS
Rochdale Borough Council,e1015474,22/12/2014,"15,321.24",INSPIREDSPACES ROCHDALE LTD,PURCHASE OF ICT HARDWARE,EARLY HELP AND SCHOOLS
Rochdale Borough Council,e1015477,23/12/2014,"130,330.90",INSPIREDSPACES ROCHDALE PROJECTCO2 LTD,IMPROVEMENTS-MODERNISATION,EARLY HELP AND SCHOOLS
Rochdale Borough Council,e1015480,23/12/2014,"437,443.93",INSPIREDSPACES ROCHDALE LTD,IMPROVEMENTS-MODERNISATION,EARLY HELP AND SCHOOLS
Rochdale Borough Council,e1015481,23/12/2014,"296,353.67",INSPIREDSPACES ROCHDALE LTD,IMPROVEMENTS-MODERNISATION,EARLY HELP AND SCHOOLS
Rochdale Borough Council,f1003903,23/12/2014,"242,603.37",LIFE FITNESS UK LIMITED,CAPITAL BUDGET ALLOCATION,ECONOMY AND ENVIRONMENT
Rochdale Borough Council,q1003297,23/12/2014,"14,720.00",TURNING POINT SERVICES LIMITED,SERVICES - GENERAL,CUSTOMERS & CORPORATE SERVICES
Rochdale Borough Council,q1003299,23/12/2014,"6,230.00",7 PDS,TRANSACTIONS-EXPENDITURE,CUSTOMERS & CORPORATE SERVICES
Rochdale Borough Council,w1000463,23/12/2014,"57,000.00",ALLIED HEALTHCARE GROUP LIMITED,SERVICE LEVEL AGREEMENTS,PHYSICAL DIS & OLDER PEOPLE
Rochdale Borough Council,e1015490,24/12/2014,"15,623.40",SEASHELL TRUST,OTHER LA`S - SEN PROVISION,EARLY HELP AND SCHOOLS
Rochdale Borough Council,s1017872,24/12/2014,"5,215.00",BROADWAY BUILDING CONTRACTORS OLDHAM LTD,IMPROVEMENTS-EXTENSIONS & ALTERATIONS,PHYSICAL DIS & OLDER PEOPLE
Rochdale Borough Council,s1017878,24/12/2014,"5,496.00",STANNAH LIFT SERVICES LTD,TRANSACTIONS-EXPENDITURE,PHYSICAL DIS & OLDER PEOPLE
Rochdale Borough Council,s1017879,24/12/2014,"5,150.00",MICK TAYLOR LIMITED,TRANSACTIONS-EXPENDITURE,PHYSICAL DIS & OLDER PEOPLE
Rochdale Borough Council,s1017881,24/12/2014,"5,190.00",ADAPT BUILDING SERVICES LTD,IMPROVEMENTS-EXTENSIONS & ALTERATIONS,PHYSICAL DIS & OLDER PEOPLE
Rochdale Borough Council,d1047151,29/12/2014,"13,419.00",ROCHDALE TRAINING ASSOCIATION LIMITED,TRAINING-QUALIFICATION,ECONOMY AND ENVIRONMENT
Rochdale Borough Council,e1015495,29/12/2014,"63,666.66",REDACTED PERSONAL DATA,OTHER LA`S - SEN PROVISION,EARLY HELP AND SCHOOLS
Rochdale Borough Council,e1015496,29/12/2014,"63,666.66",REDACTED PERSONAL DATA,OTHER LA`S - SEN PROVISION,EARLY HELP AND SCHOOLS
Rochdale Borough Council,q1003306,29/12/2014,"7,939.50",FORBES SOLICITORS,INPUT VAT -  ADJUSTMENTS,CUSTOMERS & CORPORATE SERVICES
Rochdale Borough Council,f1003906,30/12/2014,"29,461.25",MERITEC LIMITED,AGENCY STAFF,FINANCE SERVICES
Rochdale Borough Council,f1003907,30/12/2014,"8,500.00",ROYAL MAIL GROUP PLC,POSTAGE,FINANCE SERVICES
Rochdale Borough Council,ph100668,30/12/2014,"142,688.92",BIG LIFE CENTRES,PH BIG LIFE CONTRACT,PUBLIC HEALTH
Rochdale Borough Council,ph100669,30/12/2014,"227,150.00",PENNINE CARE NHS,PH PENNINE CARE CONTRACT,PUBLIC HEALTH
